[Event "*** Titled Tuesday Blitz AM"]
[Site "Chess.com"]
[Date "2020.01.07"]
[Round "1"]
[White "2L8IWUN"]
[Black "Evgeny81"]
[Result "0-1"]
[WhiteElo "2120"]
[BlackElo "2578"]
[TimeControl "180+2"]
[EndTime "9:10:28 PST"]
[Termination "Evgeny81 won by resignation"]

1. Nf3 {[%clk 0:02:59.5]} 1... d5 {[%clk 0:02:59.3]} 2. d4 {[%clk 0:03:00.9]}
2... c6 {[%clk 0:02:59.7]} 3. g3 {[%clk 0:03:00.1]} 3... Nf6 {[%clk 0:03:00.4]}
4. Bg2 {[%clk 0:03:01.7]} 4... Bg4 {[%clk 0:03:00.9]} 5. O-O {[%clk 0:03:03.6]}
5... e6 {[%clk 0:03:01.3]} 6. b3 {[%clk 0:03:05]} 6... Nbd7 {[%clk 0:03:01.6]}
7. Bb2 {[%clk 0:03:06.6]} 7... Bd6 {[%clk 0:03:02.7]} 8. Nbd2 {[%clk 0:03:08.3]}
8... O-O {[%clk 0:03:03.6]} 9. c4 {[%clk 0:03:09.2]} 9... Qe7 {[%clk 0:03:04.7]}
10. Re1 {[%clk 0:03:07.9]} 10... Rfd8 {[%clk 0:03:00.1]} 11. e4 {[%clk
0:03:05.5]} 11... dxe4 {[%clk 0:03:00.7]} 12. Nxe4 {[%clk 0:03:07.4]} 12... Nxe4
{[%clk 0:03:01.2]} 13. Rxe4 {[%clk 0:03:09.3]} 13... Nf6 {[%clk 0:03:02.3]} 14.
Re1 {[%clk 0:03:08.4]} 14... Bb4 {[%clk 0:03:02.2]} 15. Rf1 {[%clk 0:03:03.9]}
15... c5 {[%clk 0:03:01.7]} 16. a3 {[%clk 0:02:57.5]} 16... Ba5 {[%clk
0:03:01.7]} 17. h3 {[%clk 0:02:51.7]} 17... Bh5 {[%clk 0:02:54.3]} 18. Qd3
{[%clk 0:02:38.3]} 18... Bg6 {[%clk 0:02:42.8]} 19. Qe3 {[%clk 0:02:36.5]} 19...
cxd4 {[%clk 0:02:40.8]} 20. Bxd4 {[%clk 0:02:34.9]} 20... Nd7 {[%clk 0:02:26.8]}
21. b4 {[%clk 0:02:34.4]} 21... Bc7 {[%clk 0:02:25.6]} 22. Rfd1 {[%clk
0:02:33.3]} 22... a6 {[%clk 0:02:22.1]} 23. Ne5 {[%clk 0:02:29.9]} 23... Nxe5
{[%clk 0:02:20]} 24. Bxe5 {[%clk 0:02:31.8]} 24... Bxe5 {[%clk 0:02:16.8]} 25.
Qxe5 {[%clk 0:02:33.7]} 25... h6 {[%clk 0:02:06.1]} 26. c5 {[%clk 0:02:33.2]}
26... Bd3 {[%clk 0:01:49.7]} 27. Rd2 {[%clk 0:02:23]} 27... Bb5 {[%clk
0:01:49.5]} 28. Rad1 {[%clk 0:02:23.6]} 28... Rxd2 {[%clk 0:01:49.9]} 29. Rxd2
{[%clk 0:02:25.5]} 29... a5 {[%clk 0:01:49.5]} 30. Qd6 {[%clk 0:02:21.9]} 30...
Qxd6 {[%clk 0:01:40.8]} 31. Rxd6 {[%clk 0:02:09.8]} 31... axb4 {[%clk
0:01:41.7]} 32. axb4 {[%clk 0:02:11.2]} 32... Ra1+ {[%clk 0:01:30.1]} 33. Kh2
{[%clk 0:02:10.5]} 33... Ra4 {[%clk 0:01:29.8]} 34. Rb6 {[%clk 0:02:03.8]} 34...
Bc6 {[%clk 0:01:30.3]} 35. Bxc6 {[%clk 0:01:56.4]} 35... bxc6 {[%clk 0:01:31.5]}
36. Rxc6 {[%clk 0:01:49.1]} 36... Rxb4 {[%clk 0:01:32.7]} 37. Rc8+ {[%clk
0:01:51]} 37... Kh7 {[%clk 0:01:33.3]} 38. c6 {[%clk 0:01:52.5]} 38... Rc4
{[%clk 0:01:34]} 39. c7 {[%clk 0:01:52.7]} 39... g5 {[%clk 0:01:33.5]} 40. Kg2
{[%clk 0:01:51.6]} 40... Rc3 {[%clk 0:01:33.6]} 41. Kg1 {[%clk 0:01:49.1]} 41...
Kg7 {[%clk 0:01:32.7]} 42. Kg2 {[%clk 0:01:49.9]} 42... Kf6 {[%clk 0:01:32.7]}
43. Rh8 {[%clk 0:01:29.4]} 43... Rxc7 {[%clk 0:01:32.5]} 44. Rxh6+ {[%clk
0:01:30.6]} 44... Kf5 {[%clk 0:01:30.2]} 45. g4+ {[%clk 0:01:27.5]} 45... Ke5
{[%clk 0:01:27.3]} 46. Rh7 {[%clk 0:01:26.4]} 46... Kf6 {[%clk 0:01:22.4]} 47.
h4 {[%clk 0:01:24.9]} 47... Kg6 {[%clk 0:01:17.1]} 48. Rh8 {[%clk 0:01:21.1]}
48... gxh4 {[%clk 0:01:17.2]} 49. f4 {[%clk 0:01:17.6]} 49... Rc4 {[%clk
0:01:07.2]} 50. Kf3 {[%clk 0:01:12.7]} 50... Rc3+ {[%clk 0:01:07.9]} 51. Kg2
{[%clk 0:01:13]} 51... Rg3+ {[%clk 0:01:07.8]} 52. Kf2 {[%clk 0:01:12.4]} 52...
Rxg4 {[%clk 0:01:07.9]} 53. Kf3 {[%clk 0:01:10.7]} 53... Kg7 {[%clk 0:00:37]}
54. Rh5 {[%clk 0:01:03.1]} 54... Rg3+ {[%clk 0:00:27.2]} 55. Kf2 {[%clk
0:01:02.7]} 55... Rh3 {[%clk 0:00:27.7]} 56. Kg2 {[%clk 0:01:00.3]} 56... Ra3
{[%clk 0:00:24.8]} 57. Rxh4 {[%clk 0:01:00]} 57... Kg6 {[%clk 0:00:26.1]} 58.
Rg4+ {[%clk 0:00:54.1]} 58... Kf5 {[%clk 0:00:26.6]} 59. Rh4 {[%clk 0:00:53.7]}
59... f6 {[%clk 0:00:23.9]} 60. Kf2 {[%clk 0:00:52]} 60... Ra2+ {[%clk
0:00:19.5]} 61. Kf3 {[%clk 0:00:52.4]} 61... Ra3+ {[%clk 0:00:20.5]} 62. Kf2
{[%clk 0:00:53.4]} 62... Ke4 {[%clk 0:00:20.8]} 63. Rh6 {[%clk 0:00:48.3]} 63...
Rf3+ {[%clk 0:00:20.5]} 64. Ke2 {[%clk 0:00:47.8]} 64... Rxf4 {[%clk 0:00:22.1]}
65. Rg6 {[%clk 0:00:49]} 65... Kf5 {[%clk 0:00:20.8]} 66. Rh6 {[%clk 0:00:48.8]}
66... Ra4 {[%clk 0:00:20.4]} 67. Rh5+ {[%clk 0:00:49.7]} 67... Kg4 {[%clk
0:00:19.2]} 68. Rh6 {[%clk 0:00:50.2]} 68... Kg5 {[%clk 0:00:20.1]} 69. Rh8
{[%clk 0:00:51]} 69... e5 {[%clk 0:00:20.5]} 70. Rg8+ {[%clk 0:00:51.9]} 70...
Kf4 {[%clk 0:00:21]} 71. Rh8 {[%clk 0:00:53.3]} 71... Ra2+ {[%clk 0:00:20.7]}
72. Kf1 {[%clk 0:00:53.3]} 72... f5 {[%clk 0:00:21]} 73. Rh4+ {[%clk 0:00:54]}
73... Kg3 {[%clk 0:00:21]} 74. Rh5 {[%clk 0:00:54]} 74... Kg4 {[%clk 0:00:22.2]}
75. Rh8 {[%clk 0:00:53.8]} 75... e4 {[%clk 0:00:23.2]} 76. Rg8+ {[%clk
0:00:54.8]} 76... Kf3 {[%clk 0:00:23.4]} 0-1

[Event "*** Titled Tuesday Blitz AM"]
[Site "Chess.com"]
[Date "2020.01.07"]
[Round "1"]
[White "VladDobrov"]
[Black "Orest_Vovk"]
[Result "1-0"]
[WhiteElo "2814"]
[BlackElo "2424"]
[TimeControl "180+2"]
[EndTime "9:10:32 PST"]
[Termination "VladDobrov won by resignation"]

1. d4 {[%clk 0:02:57.5]} 1... h6 {[%clk 0:02:57.4]} 2. e4 {[%clk 0:02:58.1]}
2... g5 {[%clk 0:02:58.6]} 3. h4 {[%clk 0:02:57.3]} 3... Bg7 {[%clk 0:02:47.7]}
4. hxg5 {[%clk 0:02:58.1]} 4... hxg5 {[%clk 0:02:48.8]} 5. Rxh8 {[%clk
0:02:59.9]} 5... Bxh8 {[%clk 0:02:50.7]} 6. c3 {[%clk 0:03:01.5]} 6... d5 {[%clk
0:02:41.1]} 7. Qh5 {[%clk 0:02:57.9]} 7... Bg7 {[%clk 0:02:34.6]} 8. Qxg5 {[%clk
0:02:58.8]} 8... Kf8 {[%clk 0:02:32.1]} 9. Qxd5 {[%clk 0:02:59.6]} 9... Qxd5
{[%clk 0:02:32.6]} 10. exd5 {[%clk 0:03:01.5]} 10... Nf6 {[%clk 0:02:33.4]} 11.
c4 {[%clk 0:03:01.7]} 11... c6 {[%clk 0:02:28.9]} 12. dxc6 {[%clk 0:02:53.9]}
12... Nxc6 {[%clk 0:02:29.9]} 13. Be3 {[%clk 0:02:42.5]} 13... Nb4 {[%clk
0:02:26.9]} 14. Na3 {[%clk 0:02:35.6]} 14... Ng4 {[%clk 0:02:21.3]} 15. Nf3
{[%clk 0:02:33.6]} 15... Bf5 {[%clk 0:02:11.7]} 16. Kd2 {[%clk 0:02:29.7]} 16...
Rd8 {[%clk 0:02:03.2]} 17. Be2 {[%clk 0:02:16.9]} 17... Nc6 {[%clk 0:01:39.9]}
18. Nc2 {[%clk 0:01:56.8]} 18... Bxc2 {[%clk 0:00:58.4]} 19. Kxc2 {[%clk
0:01:58.7]} 19... Bxd4 {[%clk 0:00:58.8]} 20. Nxd4 {[%clk 0:01:52.4]} 20...
Nxd4+ {[%clk 0:00:59.2]} 21. Bxd4 {[%clk 0:01:51.8]} 21... Rxd4 {[%clk
0:01:01.1]} 22. Kc3 {[%clk 0:01:45.7]} 22... e5 {[%clk 0:00:59.1]} 23. Bxg4
{[%clk 0:01:38.5]} 23... Rxg4 {[%clk 0:00:59.4]} 24. g3 {[%clk 0:01:39.6]} 24...
Re4 {[%clk 0:00:46.6]} 25. Rd1 {[%clk 0:01:30.1]} 25... Ke7 {[%clk 0:00:44.7]}
26. a4 {[%clk 0:01:26.5]} 26... Re2 {[%clk 0:00:39.2]} 27. Rd2 {[%clk
0:01:26.9]} 27... Re1 {[%clk 0:00:39.3]} 28. a5 {[%clk 0:01:27.8]} 28... Ra1
{[%clk 0:00:31]} 29. Kb4 {[%clk 0:01:28.7]} 29... Rc1 {[%clk 0:00:17.9]} 30. Kb5
{[%clk 0:01:26.3]} 30... Ra1 {[%clk 0:00:16.1]} 31. b4 {[%clk 0:01:23.1]} 31...
Rb1 {[%clk 0:00:14.5]} 32. Kc5 {[%clk 0:01:10]} 32... Rb3 {[%clk 0:00:09.4]} 33.
Re2 {[%clk 0:00:38.2]} 33... Ke6 {[%clk 0:00:07]} 34. Rd2 {[%clk 0:00:38.1]}
34... Ke7 {[%clk 0:00:07.8]} 35. Ra2 {[%clk 0:00:35.1]} 35... f6 {[%clk
0:00:06.5]} 36. Rd2 {[%clk 0:00:27.7]} 36... Rb1 {[%clk 0:00:06.6]} 37. f4
{[%clk 0:00:26.4]} 37... e4 {[%clk 0:00:06.1]} 38. f5 {[%clk 0:00:22.9]} 38...
Rb3 {[%clk 0:00:06.4]} 39. Re2 {[%clk 0:00:23.2]} 39... e3 {[%clk 0:00:07.9]}
40. b5 {[%clk 0:00:23.2]} 40... Ra3 {[%clk 0:00:08.6]} 41. Kd4 {[%clk
0:00:23.4]} 41... Rxa5 {[%clk 0:00:09.5]} 42. Rxe3+ {[%clk 0:00:25]} 42... Kf7
{[%clk 0:00:10.8]} 43. Kc5 {[%clk 0:00:23.9]} 43... b6+ {[%clk 0:00:11.7]} 44.
Kc6 {[%clk 0:00:24.5]} 44... Ra1 {[%clk 0:00:13.6]} 45. Re4 {[%clk 0:00:25.6]}
45... Ra3 {[%clk 0:00:13.9]} 46. g4 {[%clk 0:00:26.8]} 46... Ra4 {[%clk
0:00:15]} 47. Kb7 {[%clk 0:00:22.2]} 47... Ra1 {[%clk 0:00:12]} 48. Kb8 {[%clk
0:00:22.6]} 48... Ra4 {[%clk 0:00:12.3]} 49. Rd4 {[%clk 0:00:23.4]} 49... Ke7
{[%clk 0:00:13.1]} 50. Re4+ {[%clk 0:00:24.8]} 50... Kf7 {[%clk 0:00:13.5]} 51.
Kc8 {[%clk 0:00:23.2]} 51... Ra1 {[%clk 0:00:12.6]} 52. Rd4 {[%clk 0:00:23.7]}
52... Ra4 {[%clk 0:00:10.9]} 53. Rd7+ {[%clk 0:00:23.2]} 53... Ke8 {[%clk
0:00:12]} 54. Rc7 {[%clk 0:00:24.2]} 54... Ra1 {[%clk 0:00:06.1]} 55. Kb8 {[%clk
0:00:23]} 55... Ra4 {[%clk 0:00:07.2]} 56. Kb7 {[%clk 0:00:17.7]} 56... Ra1
{[%clk 0:00:05.6]} 57. Kc6 {[%clk 0:00:18.1]} 57... Ra4 {[%clk 0:00:06.2]} 58.
Kd6 {[%clk 0:00:19.3]} 58... Kd8 {[%clk 0:00:07.1]} 59. Rc6 {[%clk 0:00:19.7]}
59... Ra1 {[%clk 0:00:03.8]} 60. Ke6 {[%clk 0:00:21]} 60... Rg1 {[%clk
0:00:04.6]} 61. Kxf6 {[%clk 0:00:22.1]} 61... Rxg4 {[%clk 0:00:05.9]} 62. Kf7
{[%clk 0:00:23]} 62... Kd7 {[%clk 0:00:04.9]} 63. f6 {[%clk 0:00:23.9]} 63... a6
{[%clk 0:00:06]} 64. Rxb6 {[%clk 0:00:24.4]} 64... axb5 {[%clk 0:00:07.3]} 65.
cxb5 {[%clk 0:00:25.6]} 65... Kc7 {[%clk 0:00:08.6]} 66. Re6 {[%clk 0:00:25.5]}
66... Rb4 {[%clk 0:00:08.6]} 67. Ke7 {[%clk 0:00:26.8]} 67... Rxb5 {[%clk
0:00:09.3]} 68. f7 {[%clk 0:00:28.3]} 1-0

[Event "*** Titled Tuesday Blitz AM"]
[Site "Chess.com"]
[Date "2020.01.07"]
[Round "1"]
[White "SlavenPastar"]
[Black "HarryCun"]
[Result "1-0"]
[WhiteElo "2553"]
[BlackElo "2044"]
[TimeControl "180+2"]
[EndTime "9:10:38 PST"]
[Termination "SlavenPastar won by checkmate"]

1. d4 {[%clk 0:03:01.9]} 1... Nf6 {[%clk 0:02:56.3]} 2. c4 {[%clk 0:03:02.6]}
2... e6 {[%clk 0:02:57.4]} 3. Nc3 {[%clk 0:03:03.6]} 3... Bb4 {[%clk 0:02:57.6]}
4. e3 {[%clk 0:03:05.1]} 4... b6 {[%clk 0:02:57.2]} 5. Bd3 {[%clk 0:03:06.1]}
5... Bb7 {[%clk 0:02:56.5]} 6. f3 {[%clk 0:03:07.5]} 6... d5 {[%clk 0:02:56.8]}
7. cxd5 {[%clk 0:03:08.5]} 7... Nxd5 {[%clk 0:02:57.1]} 8. Ne2 {[%clk
0:03:07.9]} 8... O-O {[%clk 0:02:56.5]} 9. O-O {[%clk 0:03:08.8]} 9... Bxc3
{[%clk 0:02:55.9]} 10. bxc3 {[%clk 0:03:09.4]} 10... c5 {[%clk 0:02:55.2]} 11.
e4 {[%clk 0:03:07.4]} 11... Ne7 {[%clk 0:02:53.8]} 12. Bg5 {[%clk 0:02:48.2]}
12... h6 {[%clk 0:02:51.5]} 13. Bh4 {[%clk 0:02:48.7]} 13... Qd7 {[%clk
0:02:46.6]} 14. Rc1 {[%clk 0:02:45.9]} 14... Ng6 {[%clk 0:02:39.7]} 15. Bg3
{[%clk 0:02:47]} 15... Nc6 {[%clk 0:02:36.3]} 16. Bb1 {[%clk 0:02:41]} 16...
Rfd8 {[%clk 0:02:32.6]} 17. Bf2 {[%clk 0:02:31.7]} 17... Rac8 {[%clk 0:02:30.2]}
18. Qa4 {[%clk 0:02:12.8]} 18... Nxd4 {[%clk 0:02:23.5]} 19. Qd1 {[%clk
0:02:06.4]} 19... Nxe2+ {[%clk 0:02:17.5]} 20. Qxe2 {[%clk 0:02:08.3]} 20... Qc7
{[%clk 0:02:10.8]} 21. Bg3 {[%clk 0:01:52.7]} 21... e5 {[%clk 0:02:08.5]} 22. a4
{[%clk 0:01:42.5]} 22... Nf4 {[%clk 0:02:03.5]} 23. Bxf4 {[%clk 0:01:15.8]}
23... exf4 {[%clk 0:02:05.4]} 24. e5 {[%clk 0:01:08.7]} 24... Re8 {[%clk
0:01:40.9]} 25. Rfe1 {[%clk 0:01:09.6]} 25... Rcd8 {[%clk 0:01:40.6]} 26. Qc2
{[%clk 0:01:05.8]} 26... g6 {[%clk 0:01:38.5]} 27. e6 {[%clk 0:01:04.4]} 27...
f5 {[%clk 0:01:31.7]} 28. Ba2 {[%clk 0:00:43]} 28... Bd5 {[%clk 0:01:24]} 29.
Rcd1 {[%clk 0:00:24.1]} 29... Bxa2 {[%clk 0:01:11.9]} 30. Rxd8 {[%clk
0:00:25.1]} 30... Qxd8 {[%clk 0:01:07.9]} 31. Qxa2 {[%clk 0:00:25.2]} 31... Qf6
{[%clk 0:01:03.9]} 32. Qc4 {[%clk 0:00:16.7]} 32... Re7 {[%clk 0:01:02.9]} 33.
h3 {[%clk 0:00:17.7]} 33... Kg7 {[%clk 0:01:03.6]} 34. Kh2 {[%clk 0:00:18.8]}
34... g5 {[%clk 0:01:04.2]} 35. Re2 {[%clk 0:00:16.6]} 35... Re8 {[%clk
0:01:00]} 36. Qd5 {[%clk 0:00:16.4]} 36... Re7 {[%clk 0:00:52.1]} 37. Qc4 {[%clk
0:00:15.6]} 37... Qf8 {[%clk 0:00:38.8]} 38. a5 {[%clk 0:00:14.8]} 38... Qb8
{[%clk 0:00:32.2]} 39. a6 {[%clk 0:00:14.9]} 39... Qd6 {[%clk 0:00:30.3]} 40.
Kg1 {[%clk 0:00:10.3]} 40... Kf6 {[%clk 0:00:30.9]} 41. Qb5 {[%clk 0:00:05.6]}
41... Rxe6 {[%clk 0:00:30.8]} 42. Rxe6+ {[%clk 0:00:06.8]} 42... Qxe6 {[%clk
0:00:32]} 43. Qd3 {[%clk 0:00:08.2]} 43... Qe1+ {[%clk 0:00:32.2]} 44. Kh2
{[%clk 0:00:09]} 44... Qg3+ {[%clk 0:00:26]} 45. Kg1 {[%clk 0:00:10.1]} 45...
Qe1+ {[%clk 0:00:27.6]} 46. Kh2 {[%clk 0:00:11.6]} 46... Qe6 {[%clk 0:00:28]}
47. Qd8+ {[%clk 0:00:11.7]} 47... Qe7 {[%clk 0:00:29.1]} 48. Qh8+ {[%clk
0:00:12.6]} 48... Qg7 {[%clk 0:00:30.1]} 49. Qb8 {[%clk 0:00:13.7]} 49... Kg6
{[%clk 0:00:24]} 50. Qd6+ {[%clk 0:00:13.4]} 50... Kh7 {[%clk 0:00:24.4]} 51.
Qb8 {[%clk 0:00:14]} 51... h5 {[%clk 0:00:22.8]} 52. Qb7 {[%clk 0:00:15.2]}
52... g4 {[%clk 0:00:23.4]} 53. hxg4 {[%clk 0:00:15.6]} 53... fxg4 {[%clk
0:00:24.5]} 54. fxg4 {[%clk 0:00:16.8]} 54... hxg4 {[%clk 0:00:25.6]} 55. c4
{[%clk 0:00:18.3]} 55... Kg6 {[%clk 0:00:23.2]} 56. Qe4+ {[%clk 0:00:18.7]}
56... Kg5 {[%clk 0:00:23.5]} 57. Qd5+ {[%clk 0:00:17.8]} 57... Kh4 {[%clk
0:00:24.2]} 58. Qd8+ {[%clk 0:00:18.4]} 58... Kh5 {[%clk 0:00:21.6]} 59. Qd5+
{[%clk 0:00:18]} 59... Kh6 {[%clk 0:00:20.6]} 60. Qd6+ {[%clk 0:00:17.5]} 60...
Qg6 {[%clk 0:00:21.6]} 61. Qxf4+ {[%clk 0:00:18.5]} 61... Kh5 {[%clk 0:00:22.2]}
62. Qe5+ {[%clk 0:00:17.4]} 62... Qg5 {[%clk 0:00:20.4]} 63. Qe8+ {[%clk
0:00:17]} 63... Qg6 {[%clk 0:00:21.2]} 64. Qb8 {[%clk 0:00:10.3]} 64... Qf7
{[%clk 0:00:17.9]} 65. Qh8+ {[%clk 0:00:08.5]} 65... Kg5 {[%clk 0:00:18.5]} 66.
Qe5+ {[%clk 0:00:09.5]} 66... Kh4 {[%clk 0:00:18]} 67. g3# {[%clk 0:00:09.6]}
1-0

[Event "*** Titled Tuesday Blitz AM"]
[Site "Chess.com"]
[Date "2020.01.07"]
[Round "1"]
[White "BeanScreen"]
[Black "liczner"]
[Result "0-1"]
[WhiteElo "2427"]
[BlackElo "2816"]
[TimeControl "180+2"]
[EndTime "9:11:28 PST"]
[Termination "liczner won by checkmate"]

1. e4 {[%clk 0:03:01.9]} 1... c6 {[%clk 0:03:00.7]} 2. d4 {[%clk 0:03:03.2]}
2... d5 {[%clk 0:03:01.6]} 3. exd5 {[%clk 0:03:05.1]} 3... cxd5 {[%clk
0:03:02.6]} 4. Bd3 {[%clk 0:03:06.6]} 4... Nc6 {[%clk 0:03:03.1]} 5. c3 {[%clk
0:03:08.2]} 5... Nf6 {[%clk 0:03:04.5]} 6. Bf4 {[%clk 0:03:09.5]} 6... Bg4
{[%clk 0:03:04.9]} 7. Qb3 {[%clk 0:03:11.2]} 7... Qc8 {[%clk 0:03:05.7]} 8. Nd2
{[%clk 0:03:12.9]} 8... e6 {[%clk 0:03:06.4]} 9. Ngf3 {[%clk 0:03:14.5]} 9...
Be7 {[%clk 0:03:05.4]} 10. O-O {[%clk 0:03:15.9]} 10... Bh5 {[%clk 0:03:06.2]}
11. Ne5 {[%clk 0:03:12.2]} 11... Nxe5 {[%clk 0:03:04.1]} 12. Bxe5 {[%clk
0:03:14.1]} 12... O-O {[%clk 0:03:02]} 13. Qc2 {[%clk 0:03:14.9]} 13... Bg6
{[%clk 0:03:01.4]} 14. Bxg6 {[%clk 0:03:16.1]} 14... hxg6 {[%clk 0:03:01.9]} 15.
Qd3 {[%clk 0:03:18]} 15... Qc6 {[%clk 0:02:28]} 16. a4 {[%clk 0:03:17.4]} 16...
Rfc8 {[%clk 0:02:16.4]} 17. f4 {[%clk 0:02:56.8]} 17... Ne4 {[%clk 0:02:01.8]}
18. Nxe4 {[%clk 0:02:42.8]} 18... dxe4 {[%clk 0:02:01.5]} 19. Qg3 {[%clk
0:02:44.7]} 19... f6 {[%clk 0:01:55.3]} 20. Qxg6 {[%clk 0:02:44.1]} 20... fxe5
{[%clk 0:01:55.3]} 21. fxe5 {[%clk 0:02:31.3]} 21... Rf8 {[%clk 0:01:55.7]} 22.
Rfe1 {[%clk 0:02:10.5]} 22... Rf4 {[%clk 0:01:34.9]} 23. Re3 {[%clk 0:02:05.6]}
23... Raf8 {[%clk 0:01:27.5]} 24. Rg3 {[%clk 0:01:13.2]} 24... R8f7 {[%clk
0:01:21.2]} 25. Rh3 {[%clk 0:00:29.9]} 25... Rh4 {[%clk 0:01:20.2]} 26. Rxh4
{[%clk 0:00:31.5]} 26... Bxh4 {[%clk 0:01:22.1]} 27. g3 {[%clk 0:00:33.2]} 27...
Be7 {[%clk 0:01:20.9]} 28. Re1 {[%clk 0:00:33.4]} 28... e3 {[%clk 0:01:16.2]}
29. Rxe3 {[%clk 0:00:29.7]} 29... Qxa4 {[%clk 0:01:15.6]} 30. Re1 {[%clk
0:00:20.9]} 30... Qb3 {[%clk 0:01:14.4]} 31. Rf1 {[%clk 0:00:10.3]} 31... Rxf1+
{[%clk 0:01:05.9]} 32. Kxf1 {[%clk 0:00:12.2]} 32... b5 {[%clk 0:00:43.9]} 33.
Qe8+ {[%clk 0:00:08.6]} 33... Bf8 {[%clk 0:00:45.1]} 34. Kg1 {[%clk 0:00:09.6]}
34... a5 {[%clk 0:00:42.5]} 35. Qc6 {[%clk 0:00:09.8]} 35... a4 {[%clk
0:00:42.4]} 36. h4 {[%clk 0:00:09.6]} 36... Qd5 {[%clk 0:00:38.8]} 37. Qe8
{[%clk 0:00:09.8]} 37... Qb3 {[%clk 0:00:27.6]} 38. Qc6 {[%clk 0:00:10.5]} 38...
Qd1+ {[%clk 0:00:25.3]} 39. Kh2 {[%clk 0:00:11.3]} 39... Qe2+ {[%clk 0:00:24.9]}
40. Kh3 {[%clk 0:00:12.8]} 40... Qf1+ {[%clk 0:00:26.3]} 41. Kh2 {[%clk
0:00:14.4]} 41... Qf2+ {[%clk 0:00:27.5]} 42. Kh3 {[%clk 0:00:15.7]} 42... Qf5+
{[%clk 0:00:28.8]} 43. Kh2 {[%clk 0:00:17]} 43... Qc2+ {[%clk 0:00:19.5]} 44.
Kh3 {[%clk 0:00:18.6]} 44... Qb3 {[%clk 0:00:21]} 45. Qe8 {[%clk 0:00:17.8]}
45... b4 {[%clk 0:00:18.5]} 46. cxb4 {[%clk 0:00:17.1]} 46... Qd5 {[%clk
0:00:20.1]} 47. b5 {[%clk 0:00:18.2]} 47... Qxd4 {[%clk 0:00:19.3]} 48. Qxe6+
{[%clk 0:00:19.1]} 48... Kh8 {[%clk 0:00:18.4]} 49. b6 {[%clk 0:00:20.6]} 49...
Qxb2 {[%clk 0:00:16]} 50. Qc8 {[%clk 0:00:20.2]} 50... Qxb6 {[%clk 0:00:09.8]}
51. Qxf8+ {[%clk 0:00:21.5]} 51... Kh7 {[%clk 0:00:11.3]} 52. Qf5+ {[%clk
0:00:23.1]} 52... Qg6 {[%clk 0:00:12.2]} 53. Qd7 {[%clk 0:00:23]} 53... a3
{[%clk 0:00:12.2]} 54. Qa7 {[%clk 0:00:23.3]} 54... Qf5+ {[%clk 0:00:11.2]} 55.
Kh2 {[%clk 0:00:24.3]} 55... Qc2+ {[%clk 0:00:11.2]} 56. Kh3 {[%clk 0:00:25.6]}
56... Qf5+ {[%clk 0:00:12.2]} 57. Kh2 {[%clk 0:00:26.9]} 57... Qc2+ {[%clk
0:00:13.7]} 58. Kh3 {[%clk 0:00:28.5]} 58... a2 {[%clk 0:00:15.2]} 59. e6 {[%clk
0:00:29.8]} 59... Qf5+ {[%clk 0:00:15.4]} 60. Kh2 {[%clk 0:00:30.5]} 60... Qxe6
{[%clk 0:00:16.8]} 61. Qa4 {[%clk 0:00:30.5]} 61... Qd5 {[%clk 0:00:10.4]} 62.
Qa6 {[%clk 0:00:14.7]} 62... Qd2+ {[%clk 0:00:08.8]} 63. Kh3 {[%clk 0:00:16]}
63... Qc2 {[%clk 0:00:09]} 64. h5 {[%clk 0:00:15.7]} 64... Qb1 {[%clk
0:00:10.1]} 65. h6 {[%clk 0:00:06.5]} 65... a1=Q {[%clk 0:00:09.2]} 66. Qc4
{[%clk 0:00:02.8]} 66... Qf5+ {[%clk 0:00:06]} 67. Qg4 {[%clk 0:00:03.7]} 67...
Qh1# {[%clk 0:00:05.5]} 0-1